{"text_format":"3","workbook":"xlsx","n_sheets":6,"sheets":["Bestellung","Optionen","Prozessbeschreibung","Zubehör","Artikelliste","Größentabelle"],"not_rendered":{"images":7,"macros":1,"defined_names":17},"read":"whole","date_system":"1900"}

{"sheet":"Bestellung","index":0,"n_rows":53,"n_cols":8,"rows_kept":53,"merged":[[5,2,5,7],[29,1,29,7],[30,1,30,7],[31,1,31,7],[34,1,34,7],[35,1,35,7],[36,1,36,7],[37,1,37,7],[39,0,39,7],[40,0,40,7],[41,0,41,7],[43,0,43,7],[44,0,44,7],[45,0,45,7],[47,0,47,7],[48,0,48,7]]}
["FC Autohaus Hörmann Heidenreichstein"]
["Bestellformular"]
["Fanartikelbestellung"]
[]
[]
["Datum:",null,{"$f":"TODAY()","v":"2018-03-19"}]
[]
["Bestellung:"]
["Nr.","Artikelbezeichnung","Initialen / Nr.","#FCH","Größe","Menge","Preis","Endbetrag"]
[1,{"$nulls":5},{"$f":"IF(B10=\"\",0,IF(AND(ISBLANK(C10)=TRUE,OR(D10=\"Nein\",D10=\"-\",D10=\"\")),VLOOKUP(B10,Artikelliste!$B$4:$H$52,7,FALSE),IF(AND(ISBLANK(C10)=FALSE,OR(D10=\"Nein\",D10=\"-\",D10=\"\")),VLOOKUP(B10,Artikelliste!$B$4:$H$52,6,FALSE),IF(AND(ISBLANK(C10)=TRUE,D10=\"Ja\"),VLOOKUP(B10,Artikelliste!$B$4:$H$52,4,FALSE),VLOOKUP(B10,Artikelliste!$B$4:$H$52,2,FALSE)))))","v":0},{"$f":"IF(B10=\"\",0,F10*G10)","v":0}]
[2,{"$nulls":5},{"$f":"IF(B11=\"\",0,IF(AND(ISBLANK(C11)=TRUE,OR(D11=\"Nein\",D11=\"-\",D11=\"\")),VLOOKUP(B11,Artikelliste!$B$4:$H$52,7,FALSE),IF(AND(ISBLANK(C11)=FALSE,OR(D11=\"Nein\",D11=\"-\",D11=\"\")),VLOOKUP(B11,Artikelliste!$B$4:$H$52,6,FALSE),IF(AND(ISBLANK(C11)=TRUE,D11=\"Ja\"),VLOOKUP(B11,Artikelliste!$B$4:$H$52,4,FALSE),VLOOKUP(B11,Artikelliste!$B$4:$H$52,2,FALSE)))))","v":0},{"$f":"IF(B11=\"\",0,F11*G11)","v":0}]
[3,{"$nulls":5},{"$f":"IF(B12=\"\",0,IF(AND(ISBLANK(C12)=TRUE,OR(D12=\"Nein\",D12=\"-\",D12=\"\")),VLOOKUP(B12,Artikelliste!$B$4:$H$52,7,FALSE),IF(AND(ISBLANK(C12)=FALSE,OR(D12=\"Nein\",D12=\"-\",D12=\"\")),VLOOKUP(B12,Artikelliste!$B$4:$H$52,6,FALSE),IF(AND(ISBLANK(C12)=TRUE,D12=\"Ja\"),VLOOKUP(B12,Artikelliste!$B$4:$H$52,4,FALSE),VLOOKUP(B12,Artikelliste!$B$4:$H$52,2,FALSE)))))","v":0},0]
[4,{"$nulls":5},{"$f":"IF(B13=\"\",0,IF(AND(ISBLANK(C13)=TRUE,OR(D13=\"Nein\",D13=\"-\",D13=\"\")),VLOOKUP(B13,Artikelliste!$B$4:$H$52,7,FALSE),IF(AND(ISBLANK(C13)=FALSE,OR(D13=\"Nein\",D13=\"-\",D13=\"\")),VLOOKUP(B13,Artikelliste!$B$4:$H$52,6,FALSE),IF(AND(ISBLANK(C13)=TRUE,D13=\"Ja\"),VLOOKUP(B13,Artikelliste!$B$4:$H$52,4,FALSE),VLOOKUP(B13,Artikelliste!$B$4:$H$52,2,FALSE)))))","v":0},0]
[5,{"$nulls":5},{"$f":"IF(B14=\"\",0,IF(AND(ISBLANK(C14)=TRUE,OR(D14=\"Nein\",D14=\"-\",D14=\"\")),VLOOKUP(B14,Artikelliste!$B$4:$H$52,7,FALSE),IF(AND(ISBLANK(C14)=FALSE,OR(D14=\"Nein\",D14=\"-\",D14=\"\")),VLOOKUP(B14,Artikelliste!$B$4:$H$52,6,FALSE),IF(AND(ISBLANK(C14)=TRUE,D14=\"Ja\"),VLOOKUP(B14,Artikelliste!$B$4:$H$52,4,FALSE),VLOOKUP(B14,Artikelliste!$B$4:$H$52,2,FALSE)))))","v":0},0]
[6,{"$nulls":5},{"$f":"IF(B15=\"\",0,IF(AND(ISBLANK(C15)=TRUE,OR(D15=\"Nein\",D15=\"-\",D15=\"\")),VLOOKUP(B15,Artikelliste!$B$4:$H$52,7,FALSE),IF(AND(ISBLANK(C15)=FALSE,OR(D15=\"Nein\",D15=\"-\",D15=\"\")),VLOOKUP(B15,Artikelliste!$B$4:$H$52,6,FALSE),IF(AND(ISBLANK(C15)=TRUE,D15=\"Ja\"),VLOOKUP(B15,Artikelliste!$B$4:$H$52,4,FALSE),VLOOKUP(B15,Artikelliste!$B$4:$H$52,2,FALSE)))))","v":0},0]
[7,{"$nulls":5},{"$f":"IF(B16=\"\",0,IF(AND(ISBLANK(C16)=TRUE,OR(D16=\"Nein\",D16=\"-\",D16=\"\")),VLOOKUP(B16,Artikelliste!$B$4:$H$52,7,FALSE),IF(AND(ISBLANK(C16)=FALSE,OR(D16=\"Nein\",D16=\"-\",D16=\"\")),VLOOKUP(B16,Artikelliste!$B$4:$H$52,6,FALSE),IF(AND(ISBLANK(C16)=TRUE,D16=\"Ja\"),VLOOKUP(B16,Artikelliste!$B$4:$H$52,4,FALSE),VLOOKUP(B16,Artikelliste!$B$4:$H$52,2,FALSE)))))","v":0},0]
[8,{"$nulls":5},{"$f":"IF(B17=\"\",0,IF(AND(ISBLANK(C17)=TRUE,OR(D17=\"Nein\",D17=\"-\",D17=\"\")),VLOOKUP(B17,Artikelliste!$B$4:$H$52,7,FALSE),IF(AND(ISBLANK(C17)=FALSE,OR(D17=\"Nein\",D17=\"-\",D17=\"\")),VLOOKUP(B17,Artikelliste!$B$4:$H$52,6,FALSE),IF(AND(ISBLANK(C17)=TRUE,D17=\"Ja\"),VLOOKUP(B17,Artikelliste!$B$4:$H$52,4,FALSE),VLOOKUP(B17,Artikelliste!$B$4:$H$52,2,FALSE)))))","v":0},0]
[9,{"$nulls":5},{"$f":"IF(B18=\"\",0,IF(AND(ISBLANK(C18)=TRUE,OR(D18=\"Nein\",D18=\"-\",D18=\"\")),VLOOKUP(B18,Artikelliste!$B$4:$H$52,7,FALSE),IF(AND(ISBLANK(C18)=FALSE,OR(D18=\"Nein\",D18=\"-\",D18=\"\")),VLOOKUP(B18,Artikelliste!$B$4:$H$52,6,FALSE),IF(AND(ISBLANK(C18)=TRUE,D18=\"Ja\"),VLOOKUP(B18,Artikelliste!$B$4:$H$52,4,FALSE),VLOOKUP(B18,Artikelliste!$B$4:$H$52,2,FALSE)))))","v":0},0]
[10,{"$nulls":5},{"$f":"IF(B19=\"\",0,IF(AND(ISBLANK(C19)=TRUE,OR(D19=\"Nein\",D19=\"-\",D19=\"\")),VLOOKUP(B19,Artikelliste!$B$4:$H$52,7,FALSE),IF(AND(ISBLANK(C19)=FALSE,OR(D19=\"Nein\",D19=\"-\",D19=\"\")),VLOOKUP(B19,Artikelliste!$B$4:$H$52,6,FALSE),IF(AND(ISBLANK(C19)=TRUE,D19=\"Ja\"),VLOOKUP(B19,Artikelliste!$B$4:$H$52,4,FALSE),VLOOKUP(B19,Artikelliste!$B$4:$H$52,2,FALSE)))))","v":0},0]
[11,{"$nulls":5},{"$f":"IF(B20=\"\",0,IF(AND(ISBLANK(C20)=TRUE,OR(D20=\"Nein\",D20=\"-\",D20=\"\")),VLOOKUP(B20,Artikelliste!$B$4:$H$52,7,FALSE),IF(AND(ISBLANK(C20)=FALSE,OR(D20=\"Nein\",D20=\"-\",D20=\"\")),VLOOKUP(B20,Artikelliste!$B$4:$H$52,6,FALSE),IF(AND(ISBLANK(C20)=TRUE,D20=\"Ja\"),VLOOKUP(B20,Artikelliste!$B$4:$H$52,4,FALSE),VLOOKUP(B20,Artikelliste!$B$4:$H$52,2,FALSE)))))","v":0},0]
[12,{"$nulls":5},{"$f":"IF(B21=\"\",0,IF(AND(ISBLANK(C21)=TRUE,OR(D21=\"Nein\",D21=\"-\",D21=\"\")),VLOOKUP(B21,Artikelliste!$B$4:$H$52,7,FALSE),IF(AND(ISBLANK(C21)=FALSE,OR(D21=\"Nein\",D21=\"-\",D21=\"\")),VLOOKUP(B21,Artikelliste!$B$4:$H$52,6,FALSE),IF(AND(ISBLANK(C21)=TRUE,D21=\"Ja\"),VLOOKUP(B21,Artikelliste!$B$4:$H$52,4,FALSE),VLOOKUP(B21,Artikelliste!$B$4:$H$52,2,FALSE)))))","v":0},0]
[13,{"$nulls":5},{"$f":"IF(B22=\"\",0,IF(AND(ISBLANK(C22)=TRUE,OR(D22=\"Nein\",D22=\"-\",D22=\"\")),VLOOKUP(B22,Artikelliste!$B$4:$H$52,7,FALSE),IF(AND(ISBLANK(C22)=FALSE,OR(D22=\"Nein\",D22=\"-\",D22=\"\")),VLOOKUP(B22,Artikelliste!$B$4:$H$52,6,FALSE),IF(AND(ISBLANK(C22)=TRUE,D22=\"Ja\"),VLOOKUP(B22,Artikelliste!$B$4:$H$52,4,FALSE),VLOOKUP(B22,Artikelliste!$B$4:$H$52,2,FALSE)))))","v":0},0]
[14,{"$nulls":5},{"$f":"IF(B23=\"\",0,IF(AND(ISBLANK(C23)=TRUE,OR(D23=\"Nein\",D23=\"-\",D23=\"\")),VLOOKUP(B23,Artikelliste!$B$4:$H$52,7,FALSE),IF(AND(ISBLANK(C23)=FALSE,OR(D23=\"Nein\",D23=\"-\",D23=\"\")),VLOOKUP(B23,Artikelliste!$B$4:$H$52,6,FALSE),IF(AND(ISBLANK(C23)=TRUE,D23=\"Ja\"),VLOOKUP(B23,Artikelliste!$B$4:$H$52,4,FALSE),VLOOKUP(B23,Artikelliste!$B$4:$H$52,2,FALSE)))))","v":0},0]
[15,{"$nulls":5},{"$f":"IF(B24=\"\",0,IF(AND(ISBLANK(C24)=TRUE,OR(D24=\"Nein\",D24=\"-\",D24=\"\")),VLOOKUP(B24,Artikelliste!$B$4:$H$52,7,FALSE),IF(AND(ISBLANK(C24)=FALSE,OR(D24=\"Nein\",D24=\"-\",D24=\"\")),VLOOKUP(B24,Artikelliste!$B$4:$H$52,6,FALSE),IF(AND(ISBLANK(C24)=TRUE,D24=\"Ja\"),VLOOKUP(B24,Artikelliste!$B$4:$H$52,4,FALSE),VLOOKUP(B24,Artikelliste!$B$4:$H$52,2,FALSE)))))","v":0},{"$f":"IF(B24=\"\",0,F24*G24)","v":0}]
[{"$nulls":7},{"$f":"SUM(H10:H24)","v":0}]
[]
["Lieferung:"]
[null,null,"(Für eine Lieferung werden 5,- € extra verrechnet)"]
["Lieferadresse:"]
["Name"]
["Straße"]
["Plz/Ort"]
[]
["Kontaktdaten:"]
["Name"]
["Straße"]
["Plz/Ort"]
["Tel."]
[]
["Die Bestellungen erfolgen jeweils nach gewissen Intervallen (meistens am Monatsende), daher kann es zu"]
[]
["Verzögerungen bei Lieferungen bzw. Bestellungen kommen - wir bitten Sie, dies zu Entschuldigen!"]
[]
["Haben Sie weitere Fragen bzw. benötigen Sie Hilfe bei den Artikeln oder Sonstiges kontaktieren Sie den Verein, besuchen Sie unsere"]
["Homepage (www.fc-heidenreichstein.at) oder durchstöbern Sie unseren Fanartikelkatalog (heidenreichstein.11teamsports.at)"]
["Kontaktdaten Fanartikel: Flicker Lukas - 0664 52 58 201"]
[]
["Dieses Bestellformular einfach an fcheidenreichstein@gmx.at senden oder am Sportplatz abgeben"]
["oder per Klick auf Bestellung absenden!"]
[]
[{"$nulls":3},"Kontoname:","FC Autohaus Hörmann Heidenreichstein"]
[{"$nulls":3},"IBAN:","AT42 3241 5000 0010 6765"]
[{"$nulls":3},"Bic:","RLNWATWWOWS"]

{"sheet":"Optionen","index":1,"n_rows":19,"n_cols":2,"rows_kept":19,"hidden":true}
["Optionen","Simkarte"]
["bitte HIER klicken und auswählen ","bitte HIER klicken und auswählen"]
["Datenpaket_1GB_Grundentgelt_EUR_9.60_inkl._MwSt.","JA"]
["Datenpaket_1GB_LTE_Grundentgelt_EUR_14.56_inkl._MwSt.","NEIN"]
["Datenpaket_5GB_limitiert__Grundentgelt_EUR_11.40_inkl._MwSt."]
["Datenpaket_5GB_LTE_limitiert__Grundentgelt_EUR_16.36_inkl._MwSt."]
["Datenpaket_5GB_unlimitiert__Grundentgelt_EUR_11.40_inkl._MwSt."]
["Datenpaket_5GB_LTE_unlimitiert__Grundentgelt_EUR_16.36_inkl._MwSt."]
["A1_Business_Speed_4G_LTE5GB_limitiert__Grundentgelt_EUR_21.60_inkl._MwSt."]
["A1_Smartphone_4G_LTE10GB_limitiert__Grundentgelt_EUR_33.60_inkl._MwSt."]
["A1_Smartphone_4G_LTE10GB_unlimitiert__Grundentgelt_EUR_33.60_inkl._MwSt."]
["Datenpaket_10GB_limitiert__Grundentgelt_EUR_14.40_inkl._MwSt."]
["Datenpaket_10GB_LTE_limitiert_Grundentgelt_EUR_19.36_inkl._MwSt."]
["Datenpaket_10GB_unlimitiert__Grundentgelt_EUR_14.40_inkl._MwSt."]
["Datenpaket_10GB_LTE_unlimitiert_Grundentgelt_EUR_19.36_inkl._MwSt."]
["Datenpaket_20GB_limitiert__Grundentgelt_EUR_33.60_inkl._MwSt."]
["Datenpaket_20GB_LTE_limitiert_Grundentgelt_EUR_38.56_inkl._MwSt."]
["Datenpaket_20GB_unlimitiert__Grundentgelt_EUR_39.60_inkl._MwSt."]
["Datenpaket_20GB_LTE_unlimitiert_Grundentgelt_EUR_44.56_inkl._MwSt."]

{"sheet":"Prozessbeschreibung","index":2,"n_rows":91,"n_cols":1,"rows_kept":91,"hidden":true}
["Spalte P -Preisliste (Verkettung)"]
["WENN(ISTZAHL($A15);(VERKETTEN($A15;\" \";$B15;\" \";$D15;\" \";\"€ \";$J15;\" inkl. MWSt.\"));\"-\")"]
[]
[]
[]
[]
["Bearbeiten und Ergänzen der Optionen:"]
["Formeln/Namensmanager/"]
{"$rows_empty":22}
["Namen im Manager müssen ident sein mit den Bezeichnungen im Tabellenblatt Optionen"]
{"$rows_empty":13}
["In \"Bezieht sich auf:\" reinklicken und dann auf Tabellenblatt Preisliste wechseln und den Inhalt (Liste) markieren"]
[]
["Zum Befüllen des Feldes Datenoptionen:"]
["Daten/Datenüberprüfung /im Feld Quelle - Optionen aus dem Tabellenblatt Optionen richtig auswählen"]
{"$rows_empty":19}
["Zum Befüllen des Feldes Hardwaretype:"]
["Daten/Datenüberprüfung/ im Feld Quelle muss immer diese Formel stehen"]
{"$rows_empty":20}
["Zum Befüllen des Feldes \"neue Simkarte benötigt?\":"]
["Daten/Datenüberprüfung /im Feld Quelle - Überschrift/JA und NEIN  aus dem Tabellenblatt Optionen richtig auswählen"]

{"sheet":"Zubehör","index":3,"n_rows":11,"n_cols":71,"rows_kept":11,"hidden":true}
["bitte HIER klicken und auswählen","1000007594","1000007596","1000009059","1000008645","1000002210/1000001838","1000009573","1000007093","1000009577","1000009485","1000009488","1000009491","1000009482","1000009507","1000009503","1000009520","1000009529","1000009532","1000009535","1000009526","1000009550","1000009547","1000009562","1000008422","1000008426","1000008424","1000008428","1000008504","1000004575","1000009131","1000005950","1000007371","1000007535","1000008921","1000005469","1000005475","1000008600","1000008106","1000006554","1000009691","1000007014","1000009474","1000008248","1000009643","1000009772/1000009412","1000008365","1000008363","1000008196","1000009429","1000008319","1000006985","1000007775","1000006987","1000008060","1000008038","1000008035","1000008033","1000008326","1000008174","1000008794","1000008176","1000008175","1000008792","1000008177","1000008797","1000008277","1000009440","1000008279","1000008527","1000009467","Universell"]
["bitte HIER klicken und auswählen","bitte HIER klicken und auswählen","bitte HIER klicken und auswählen","bitte HIER klicken und auswählen","bitte HIER klicken und auswählen","bitte HIER klicken und auswählen","bitte HIER klicken und auswählen","bitte HIER klicken und auswählen","bitte HIER klicken und auswählen","bitte HIER klicken und auswählen","bitte HIER klicken und auswählen","bitte HIER klicken und auswählen","bitte HIER klicken und auswählen","bitte HIER klicken und auswählen","bitte HIER klicken und auswählen","bitte HIER klicken und auswählen","bitte HIER klicken und auswählen","bitte HIER klicken und auswählen","bitte HIER klicken und auswählen","bitte HIER klicken und auswählen","bitte HIER klicken und auswählen","bitte HIER klicken und auswählen","bitte HIER klicken und auswählen","bitte HIER klicken und auswählen","bitte HIER klicken und auswählen","bitte HIER klicken und auswählen","bitte HIER klicken und auswählen","bitte HIER klicken und auswählen","bitte HIER klicken und auswählen","bitte HIER klicken und auswählen","bitte HIER klicken und auswählen","bitte HIER klicken und auswählen","bitte HIER klicken und auswählen","bitte HIER klicken und auswählen","bitte HIER klicken und auswählen","bitte HIER klicken und auswählen","bitte HIER klicken und auswählen","bitte HIER klicken und auswählen","bitte HIER klicken und auswählen","bitte HIER klicken und auswählen","bitte HIER klicken und auswählen","bitte HIER klicken und auswählen","bitte HIER klicken und auswählen","bitte HIER klicken und auswählen","bitte HIER klicken und auswählen","bitte HIER klicken und auswählen","bitte HIER klicken und auswählen","bitte HIER klicken und auswählen","bitte HIER klicken und auswählen","bitte HIER klicken und auswählen","bitte HIER klicken und auswählen","bitte HIER klicken und auswählen","bitte HIER klicken und auswählen","bitte HIER klicken und auswählen","bitte HIER klicken und auswählen","bitte HIER klicken und auswählen","bitte HIER klicken und auswählen","bitte HIER klicken und auswählen","bitte HIER klicken und auswählen","bitte HIER klicken und auswählen","bitte HIER klicken und auswählen","bitte HIER klicken und auswählen","bitte HIER klicken und auswählen","bitte HIER klicken und auswählen","bitte HIER klicken und auswählen","bitte HIER klicken und auswählen","bitte HIER klicken und auswählen","bitte HIER klicken und auswählen","bitte HIER klicken und auswählen","bitte HIER klicken und auswählen","bitte HIER klicken und auswählen"]
[{"$nulls":5},"Flip Tasche € 21","Flip Tasche € 21",null,null,"Flip Tasche € 21","Flip Tasche € 21","Flip Tasche € 21","Flip Tasche € 21","Flip Tasche € 21","Flip Tasche € 21","Flip Tasche € 21",{"$nulls":7},"Flip Tasche € 21","Flip Tasche € 21","Flip Tasche € 21","Flip Tasche € 21","Flip Tasche € 21",null,"Lederholster € 39,6","Lederholster € 45,6","Lederholster € 39,6",{"$nulls":11},"Wallet Folio Case € 22,8","Book Tasche € 29,4","Book Tasche € 22,8","Book Tasche € 22,8",{"$nulls":6},"Flip Tasche € 21","Flip Tasche € 21","Flip Tasche € 21","Flip Tasche € 21",null,"Flip Tasche € 21","Flip Tasche € 21","Flip Tasche € 21","Flipcover S View € 50,4","Flipcover S View € 50,4","Flipcover S View € 50,4","Flip Tasche € 21","Book Tasche € 23,4",null,"Book Tasche € 23,4","Book Tasche € 23,4",null,"SAMSUNG Bluetooth Headset € 20,4"]
[{"$nulls":5},"Book Tasche € 22,8","Book Tasche € 22,8",null,null,"Book Tasche € 22,8","Book Tasche € 22,8","Book Tasche € 22,8","Book Tasche € 22,8","Book Tasche € 22,8","Book Tasche € 22,8","Book Tasche € 22,8",{"$nulls":7},"Book Tasche € 22,8","Book Tasche € 22,8","Book Tasche € 22,8","Book Tasche € 22,8","Book Tasche € 22,8",null,"Flipcase € 39,6","Flipcase € 40,8","Flipcase € 39,6",{"$nulls":11},"Book Tasche € 22,8","PC Cover transparent € 10,8","PC Cover transparent € 10,8","PC Cover transparent € 10,8",{"$nulls":6},"Book Tasche € 30","Book Tasche € 30","Book Tasche € 30","Book Tasche € 30",null,"Book Tasche € 22,8","Book Tasche € 22,8","Book Tasche € 22,8","Carbon Cover € 75","Carbon Cover € 75","Carbon Cover € 75","Ledertasche mit Gürtelschlaufe € 21","Back Cover € 14,4",null,"Back Cover € 14,4","Back Cover € 14,4",null,"Plantronics BT Headset M70 € 30"]
[{"$nulls":5},"Echtglas-Displayschutzfolie € 15","Ultra-Slim-Cover € 14,4",null,null,"Ultra-Slim-Cover € 14,4","Ultra-Slim-Cover € 14,4","Ultra-Slim-Cover € 14,4","Ultra-Slim-Cover € 14,4","Ultra-Slim-Cover € 14,4","Ultra-Slim-Cover € 14,4","Ultra-Slim-Cover € 14,4",{"$nulls":7},"Echtglas-Displayschutzfolie € 9","Echtglas-Displayschutzfolie € 9","Echtglas-Displayschutzfolie € 9","Echtglas-Displayschutzfolie € 9","Echtglas-Displayschutzfolie € 9",null,"Echtglas-Displayschutzfolie € 15","Echtglas-Displayschutzfolie € 15","Echtglas-Displayschutzfolie € 15",{"$nulls":11},"Echtglas-Displayschutzfolie € 15","Echtglas-Displayschutzfolie € 15","Echtglas-Displayschutzfolie € 15","Echtglas-Displayschutzfolie € 15",{"$nulls":6},"Echtglas-Displayschutzfolie € 15","Echtglas-Displayschutzfolie € 15","Echtglas-Displayschutzfolie € 15","Echtglas-Displayschutzfolie € 15",null,"Echtglas-Displayschutzfolie € 15","Echtglas-Displayschutzfolie € 15","Echtglas-Displayschutzfolie € 15","Echtglas-Displayschutzfolie € 15","Echtglas-Displayschutzfolie € 15","Echtglas-Displayschutzfolie € 15","Akku Galaxy Xcover 3 € 27,6","Echtglas-Displayschutzfolie € 15",null,"Echtglas-Displayschutzfolie € 15","Echtglas-Displayschutzfolie € 15",null,"Parrot BT Lautsprecher € 60"]
[{"$nulls":5},"Echtglas-Displayschutzfolie + blasenfreie Beklebung  € 21","Carbon Cover € 72",null,null,"Wallet Folio Case € 20,4","Wallet Folio Case € 20,4","Wallet Folio Case € 20,4","Wallet Folio Case € 20,4","Wallet Folio Case € 20,4","Wallet Folio Case € 20,4","Wallet Folio Case € 20,4",{"$nulls":7},"Echtglas-Displayschutzfolie + blasenfreie Beklebung  € 15","Echtglas-Displayschutzfolie + blasenfreie Beklebung  € 15","Echtglas-Displayschutzfolie + blasenfreie Beklebung  € 15","Echtglas-Displayschutzfolie + blasenfreie Beklebung  € 15","Echtglas-Displayschutzfolie + blasenfreie Beklebung  € 15",null,"Echtglas-Displayschutzfolie + blasenfreie Beklebung  € 21","Echtglas-Displayschutzfolie + blasenfreie Beklebung  € 21","Echtglas-Displayschutzfolie + blasenfreie Beklebung  € 21",{"$nulls":11},"Echtglas-Displayschutzfolie + blasenfreie Beklebung  € 21","Echtglas-Displayschutzfolie + blasenfreie Beklebung  € 21","Echtglas-Displayschutzfolie + blasenfreie Beklebung  € 21","Echtglas-Displayschutzfolie + blasenfreie Beklebung  € 21",{"$nulls":6},"Echtglas-Displayschutzfolie + blasenfreie Beklebung  € 21","Echtglas-Displayschutzfolie + blasenfreie Beklebung  € 21","Echtglas-Displayschutzfolie + blasenfreie Beklebung  € 21","Echtglas-Displayschutzfolie + blasenfreie Beklebung  € 21",null,"Echtglas-Displayschutzfolie + blasenfreie Beklebung  € 21","Echtglas-Displayschutzfolie + blasenfreie Beklebung  € 21","Echtglas-Displayschutzfolie + blasenfreie Beklebung  € 21","Echtglas-Displayschutzfolie + blasenfreie Beklebung  € 21","Echtglas-Displayschutzfolie + blasenfreie Beklebung  € 21","Echtglas-Displayschutzfolie + blasenfreie Beklebung  € 21",null,"Echtglas-Displayschutzfolie + blasenfreie Beklebung  € 21",null,"Echtglas-Displayschutzfolie + blasenfreie Beklebung  € 21","Echtglas-Displayschutzfolie + blasenfreie Beklebung  € 21",null,"Speicherkarte Micro SD 16GB € 13,2"]
[{"$nulls":6},"Apple Silicone Case schwarz € 46,8",null,null,"Apple Silicone Case schwarz € 46,8","Apple Silicone Case schwarz € 46,8","Apple Silicone Case schwarz € 46,8","Apple Silicone Case schwarz € 46,8","Apple Silicone Case schwarz € 46,8","Apple Silicone Case schwarz € 46,8","Apple Silicone Case schwarz € 46,8",{"$nulls":54},"Speicherkarte Micro SD 32GB € 22,8"]
[{"$nulls":6},"Echtglas-Displayschutzfolie € 15",null,null,"Echtglas-Displayschutzfolie € 15","Echtglas-Displayschutzfolie € 15","Echtglas-Displayschutzfolie € 15","Echtglas-Displayschutzfolie € 15","Echtglas-Displayschutzfolie € 15","Echtglas-Displayschutzfolie € 15","Echtglas-Displayschutzfolie € 15",{"$nulls":54},"Speicherkarte Micro SD 64GB € 30"]
[{"$nulls":6},"Echtglas-Displayschutzfolie + blasenfreie Beklebung  € 21",null,null,"Echtglas-Displayschutzfolie + blasenfreie Beklebung  € 21","Echtglas-Displayschutzfolie + blasenfreie Beklebung  € 21","Echtglas-Displayschutzfolie + blasenfreie Beklebung  € 21","Echtglas-Displayschutzfolie + blasenfreie Beklebung  € 21","Echtglas-Displayschutzfolie + blasenfreie Beklebung  € 21","Echtglas-Displayschutzfolie + blasenfreie Beklebung  € 21","Echtglas-Displayschutzfolie + blasenfreie Beklebung  € 21",{"$nulls":54},"LG Universal KFZ Halterung bis zu 5 Zoll, 360 Grad drehbar\n € 35,4"]
[{"$nulls":70},"SAMSUNG Universelle KFZ Halterung\nvon 4-5.7 Zoll für alle Marken\n € 30,6"]
[{"$nulls":70},"Universal-Halter für Smartphones\nfür Geräte von 4 - 11 cm Breite\n € 27"]

{"sheet":"Artikelliste","index":4,"n_rows":52,"n_cols":8,"rows_kept":52,"merged":[[0,0,0,7]]}
["FC Hörmann Heidenreichstein"]
["Artikel Nr.","Artikelbezeichung","Preis","Initialen","Preis - o. I.","#FCH","Preis ohne #","Preis ohne Druck"]
[]
[1,"Heimtrikot - Erw.",{"v":31.5,"d":"€ 31.50"},null,{"$f":"C4-D4","v":{"v":31.5,"d":"€ 31.50"}},null,{"$f":"C4-F4","v":{"v":31.5,"d":"€ 31.50"}},{"$f":"C4-D4-F4","v":{"v":31.5,"d":"€ 31.50"}}]
[2,"Heimtrikot - Kdr.",{"v":28,"d":"€ 28.00"},null,{"$f":"C5-D5","v":{"v":28,"d":"€ 28.00"}},null,{"$f":"C5-F5","v":{"v":28,"d":"€ 28.00"}},{"$f":"C5-D5-F5","v":{"v":28,"d":"€ 28.00"}}]
[3,"Hoodie - Erw.",{"v":45.5,"d":"€ 45.50"},{"v":3,"d":"€ 3.00"},{"v":42.5,"d":"€ 42.50"},null,{"v":45.5,"d":"€ 45.50"},{"v":42.5,"d":"€ 42.50"}]
[4,"Hoodie - Kdr.",{"v":38.5,"d":"€ 38.50"},{"v":3,"d":"€ 3.00"},{"v":35.5,"d":"€ 35.50"},null,{"v":38.5,"d":"€ 38.50"},{"v":35.5,"d":"€ 35.50"}]
[5,"Präsentationsjacke - Erw.",{"v":32,"d":"€ 32.00"},{"v":3,"d":"€ 3.00"},{"v":29,"d":"€ 29.00"},{"v":4,"d":"€ 4.00"},{"v":28,"d":"€ 28.00"},{"v":25,"d":"€ 25.00"}]
[6,"Präsentationsjacke - Kdr.",{"v":28.5,"d":"€ 28.50"},{"v":3,"d":"€ 3.00"},{"v":25.5,"d":"€ 25.50"},{"v":4,"d":"€ 4.00"},{"v":24.5,"d":"€ 24.50"},{"v":21.5,"d":"€ 21.50"}]
[7,"Polo Shirt - Erw.",{"v":31.5,"d":"€ 31.50"},{"v":3,"d":"€ 3.00"},{"v":28.5,"d":"€ 28.50"},null,{"v":31.5,"d":"€ 31.50"},{"v":28.5,"d":"€ 28.50"}]
[8,"Polo Shirt - Kdr.",{"v":28,"d":"€ 28.00"},{"v":3,"d":"€ 3.00"},{"v":25,"d":"€ 25.00"},null,{"v":28,"d":"€ 28.00"},{"v":25,"d":"€ 25.00"}]
[9,"Präsentationshose kurz",{"v":20.5,"d":"€ 20.50"},{"v":3,"d":"€ 3.00"},{"v":17.5,"d":"€ 17.50"},null,{"v":20.5,"d":"€ 20.50"},{"v":17.5,"d":"€ 17.50"}]
[10,"Winterjacke -Erw.",{"v":91,"d":"€ 91.00"},{"v":3,"d":"€ 3.00"},{"v":88,"d":"€ 88.00"},null,{"v":91,"d":"€ 91.00"},{"v":88,"d":"€ 88.00"}]
[11,"Winterjacke - Kdr.",{"v":84,"d":"€ 84.00"},{"v":3,"d":"€ 3.00"},{"v":81,"d":"€ 81.00"},null,{"v":84,"d":"€ 84.00"},{"v":81,"d":"€ 81.00"}]
[12,"Herbstjacke - Erw.",{"v":77,"d":"€ 77.00"},{"v":3,"d":"€ 3.00"},{"v":74,"d":"€ 74.00"},null,{"v":77,"d":"€ 77.00"},{"v":74,"d":"€ 74.00"}]
[13,"Herbstjacke - Kdr.",{"v":70,"d":"€ 70.00"},{"v":3,"d":"€ 3.00"},{"v":67,"d":"€ 67.00"},null,{"v":70,"d":"€ 70.00"},{"v":67,"d":"€ 67.00"}]
[14,"Kappe",{"v":20,"d":"€ 20.00"},null,{"v":20,"d":"€ 20.00"},null,{"v":20,"d":"€ 20.00"},{"v":20,"d":"€ 20.00"}]
[15,"Regenjacke - Erw.",{"v":35,"d":"€ 35.00"},{"v":3,"d":"€ 3.00"},{"v":32,"d":"€ 32.00"},null,{"v":35,"d":"€ 35.00"},{"v":32,"d":"€ 32.00"}]
[16,"Regenjacke - Kdr.",{"v":31.5,"d":"€ 31.50"},{"v":3,"d":"€ 3.00"},{"v":28.5,"d":"€ 28.50"},null,{"v":31.5,"d":"€ 31.50"},{"v":28.5,"d":"€ 28.50"}]
[17,"Wimpel",{"v":10,"d":"€ 10.00"},null,{"v":10,"d":"€ 10.00"},null,{"v":10,"d":"€ 10.00"},{"v":10,"d":"€ 10.00"}]
[18,"Schal",{"v":15,"d":"€ 15.00"},null,{"v":15,"d":"€ 15.00"},null,{"v":15,"d":"€ 15.00"},{"v":15,"d":"€ 15.00"}]
[19,"Baisipaket - Erw.",{"v":89.95,"d":"€ 89.95"},null,{"v":89.95,"d":"€ 89.95"},null,{"v":89.95,"d":"€ 89.95"},{"v":89.95,"d":"€ 89.95"}]
[20,"Basispaket - Kdr.",{"v":79.95,"d":"€ 79.95"},null,{"v":79.95,"d":"€ 79.95"},null,{"v":79.95,"d":"€ 79.95"},{"v":79.95,"d":"€ 79.95"}]
[21,"Trainingssweater - Erw.",{"v":35.5,"d":"€ 35.50"},{"v":3,"d":"€ 3.00"},{"v":32.5,"d":"€ 32.50"},{"v":4,"d":"€ 4.00"},{"v":31.5,"d":"€ 31.50"},{"v":28.5,"d":"€ 28.50"}]
[22,"Trainingssweater - Kdr.",{"v":32,"d":"€ 32.00"},{"v":3,"d":"€ 3.00"},{"v":29,"d":"€ 29.00"},{"v":4,"d":"€ 4.00"},{"v":28,"d":"€ 28.00"},{"v":25,"d":"€ 25.00"}]
[23,"Trainingshose - Erw.",{"v":31,"d":"€ 31.00"},{"v":3,"d":"€ 3.00"},{"v":28,"d":"€ 28.00"},null,{"v":31,"d":"€ 31.00"},{"v":28,"d":"€ 28.00"}]
[24,"Trainingshose - Kdr.",{"v":27.5,"d":"€ 27.50"},{"v":3,"d":"€ 3.00"},{"v":24.5,"d":"€ 24.50"},null,{"v":27.5,"d":"€ 27.50"},{"v":24.5,"d":"€ 24.50"}]
[25,"Trainingsshirt - Erw.",{"v":22.9,"d":"€ 22.90"},{"v":3,"d":"€ 3.00"},{"v":19.9,"d":"€ 19.90"},{"v":4,"d":"€ 4.00"},{"v":18.9,"d":"€ 18.90"},{"v":15.899999999999999,"d":"€ 15.90"}]
[26,"Trainingsshirt - Kdr.",{"v":20.8,"d":"€ 20.80"},{"v":3,"d":"€ 3.00"},{"v":17.8,"d":"€ 17.80"},{"v":4,"d":"€ 4.00"},{"v":16.8,"d":"€ 16.80"},{"v":13.8,"d":"€ 13.80"}]
[27,"Trainingsshort - Erw.",{"v":17,"d":"€ 17.00"},{"v":3,"d":"€ 3.00"},{"v":14,"d":"€ 14.00"},null,{"v":17,"d":"€ 17.00"},{"v":14,"d":"€ 14.00"}]
[28,"Trainingsshort - Kdr.",{"v":13.5,"d":"€ 13.50"},{"v":3,"d":"€ 3.00"},{"v":10.5,"d":"€ 10.50"},null,{"v":13.5,"d":"€ 13.50"},{"v":10.5,"d":"€ 10.50"}]
[29,"Trainingsjacke - Erw.",{"v":36,"d":"€ 36.00"},{"v":3,"d":"€ 3.00"},{"v":33,"d":"€ 33.00"},{"v":4,"d":"€ 4.00"},{"v":32,"d":"€ 32.00"},{"v":29,"d":"€ 29.00"}]
[30,"Trainingsjacke - Kdr.",{"v":32.5,"d":"€ 32.50"},{"v":3,"d":"€ 3.00"},{"v":29.5,"d":"€ 29.50"},{"v":4,"d":"€ 4.00"},{"v":28.5,"d":"€ 28.50"},{"v":25.5,"d":"€ 25.50"}]
[31,"Trainingshose 3/4 - Erw.",{"v":24,"d":"€ 24.00"},{"v":3,"d":"€ 3.00"},{"v":21,"d":"€ 21.00"},null,{"v":24,"d":"€ 24.00"},{"v":21,"d":"€ 21.00"}]
[32,"Trainingshose 3/4 - Kdr.",{"v":20.5,"d":"€ 20.50"},{"v":3,"d":"€ 3.00"},{"v":17.5,"d":"€ 17.50"},null,{"v":20.5,"d":"€ 20.50"},{"v":17.5,"d":"€ 17.50"}]
[33,"Basispaket - Damen",{"v":139.95,"d":"€ 139.95"},null,{"v":139.95,"d":"€ 139.95"},null,{"v":139.95,"d":"€ 139.95"},{"v":139.95,"d":"€ 139.95"}]
[34,"Trainingsjacke - Damen",{"v":35,"d":"€ 35.00"},{"v":3,"d":"€ 3.00"},{"v":32,"d":"€ 32.00"},null,{"v":35,"d":"€ 35.00"},{"v":32,"d":"€ 32.00"}]
[35,"Trainingshose lang - Damen",{"v":31,"d":"€ 31.00"},{"v":3,"d":"€ 3.00"},{"v":28,"d":"€ 28.00"},null,{"v":31,"d":"€ 31.00"},{"v":28,"d":"€ 28.00"}]
[36,"Trainingshose kurz - Damen",{"v":17,"d":"€ 17.00"},{"v":3,"d":"€ 3.00"},{"v":14,"d":"€ 14.00"},null,{"v":17,"d":"€ 17.00"},{"v":14,"d":"€ 14.00"}]
[37,"Trainingsshirt - Damen",{"v":21,"d":"€ 21.00"},{"v":3,"d":"€ 3.00"},{"v":18,"d":"€ 18.00"},null,{"v":21,"d":"€ 21.00"},{"v":18,"d":"€ 18.00"}]
[38,"Hoodie - Damen",{"v":45.5,"d":"€ 45.50"},{"v":3,"d":"€ 3.00"},{"v":42.5,"d":"€ 42.50"},null,{"v":45.5,"d":"€ 45.50"},{"v":42.5,"d":"€ 42.50"}]
[39,"Sporttasche - 45 Liter",{"v":28,"d":"€ 28.00"},null,{"v":28,"d":"€ 28.00"},null,{"v":28,"d":"€ 28.00"},{"v":28,"d":"€ 28.00"}]
[40,"Sporttasche - 52 Liter",{"v":31.5,"d":"€ 31.50"},null,{"v":31.5,"d":"€ 31.50"},null,{"v":31.5,"d":"€ 31.50"},{"v":31.5,"d":"€ 31.50"}]
[41,"Rucksack",{"v":21,"d":"€ 21.00"},null,{"v":21,"d":"€ 21.00"},null,{"v":21,"d":"€ 21.00"},{"v":21,"d":"€ 21.00"}]
[42,"Haube",{"v":14,"d":"€ 14.00"},null,{"v":14,"d":"€ 14.00"},null,{"v":14,"d":"€ 14.00"},{"v":14,"d":"€ 14.00"}]
[43,"Handschuhe - Erw.",{"v":16.1,"d":"€ 16.10"},null,{"v":16.1,"d":"€ 16.10"},null,{"v":16.1,"d":"€ 16.10"},{"v":16.1,"d":"€ 16.10"}]
[44,"Handschuhe - Kdr.",{"v":16.1,"d":"€ 16.10"},null,{"v":16.1,"d":"€ 16.10"},null,{"v":16.1,"d":"€ 16.10"},{"v":16.1,"d":"€ 16.10"}]
[45,"Neckwarmer",{"v":20,"d":"€ 20.00"},null,{"v":20,"d":"€ 20.00"},null,{"v":20,"d":"€ 20.00"},{"v":20,"d":"€ 20.00"}]
[46,"Socken",{"v":7,"d":"€ 7.00"},null,{"v":7,"d":"€ 7.00"},null,{"v":7,"d":"€ 7.00"},{"v":7,"d":"€ 7.00"}]
[47,"Stutzen",{"v":7,"d":"€ 7.00"},null,{"v":7,"d":"€ 7.00"},null,{"v":7,"d":"€ 7.00"},{"v":7,"d":"€ 7.00"}]
[48,"Trainingsball",{"v":28,"d":"€ 28.00"},null,{"v":28,"d":"€ 28.00"},null,{"v":28,"d":"€ 28.00"},{"v":28,"d":"€ 28.00"}]
[49,"Matchball",{"v":91,"d":"€ 91.00"},null,{"v":91,"d":"€ 91.00"},null,{"v":91,"d":"€ 91.00"},{"v":91,"d":"€ 91.00"}]

{"sheet":"Größentabelle","index":5,"n_rows":25,"n_cols":1,"rows_kept":25}
["FC Volksbank Heidenreichstein"]
["Größentablle"]
[]
[]
["One Size"]
["Kinder XS"]
["Kinder S"]
["Kinder M"]
["Kinder L"]
["Kinder XL"]
["Erwachsene S"]
["Erwachsene M"]
["Erwachsene L"]
["Erwachsene XL"]
["Erwachsene XXL"]
["Damen XS"]
["Damen S"]
["Damen M"]
["Damen L"]
["Damen XL"]
["Stutzen XS"]
["Stutzen S"]
["Stutzen M"]
["Stutzen L"]
["Stutzen XL"]